bitfinex-derivatives/quotes_BTCF0:USTF0_20251219
["timestamp","ask_amount","ask_price","bid_price","bid_amount"]
[1766150968437,0.00568,88098.0,88081.0,0.00568]
[1766150968643,0.011358,88092.0,88077.0,0.00017024]
[1766150968844,0.0113583,88090.0,88077.0,0.00017024]
[1766150969156,0.0113579,88093.0,88077.0,0.01153014]
[1766150970444,0.0113575,88096.0,88077.0,0.01153014]
[1766150970863,0.0113575,88096.0,88079.0,0.0113596]
[1766150971353,0.0113575,88096.0,88080.0,0.34059332]
[1766150971553,0.0113575,88096.0,88079.0,0.0113596]
[1766150972648,0.0113578,88094.0,88080.0,0.34059332]
[1766150972855,0.0113583,88090.0,88080.0,0.34059332]
[1766150973049,0.0113583,88090.0,88077.0,0.00017024]
[1766150973447,0.0113587,88087.0,88080.0,0.34060883]
[1766150973755,0.0113587,88087.0,88077.0,0.34077907]
[1766150974751,0.00568,88098.0,88077.0,0.34077907]
[1766150974752,0.00568,88098.0,88077.0,0.00017024]
[1766150974955,0.0113581,88091.0,88080.0,0.34060883]
[1766150975656,0.0113584,88089.0,88080.0,0.34060883]
[1766150976958,0.0113577,88094.0,88080.0,0.34060883]
[1766150977347,0.0113577,88094.0,88077.0,0.00017024]
[1766150977547,0.0113577,88094.0,88080.0,0.34060883]
[1766150978350,0.0113577,88094.0,88080.0,0.35196833]
[1766150979560,0.0113574,88097.0,88080.0,0.35196833]
[1766150979857,0.0242918,88096.0,88080.0,0.35196833]
[1766150980052,0.0113574,88097.0,88080.0,0.35196833]
[1766150980259,0.0242925,88096.0,88080.0,0.35196833]
[1766150981661,0.0113576,88095.0,88080.0,0.35196833]
[1766150983865,0.00568,88098.0,88080.0,0.34060883]
[1766150984054,0.00568,88098.0,88077.0,0.00017024]
[1766150984055,0.0113588,88086.0,88077.0,0.00017024]
[1766150984254,0.00568,88085.0,88077.0,0.00017024]
[1766150984455,0.011359,88084.0,88077.0,0.00017024]
[1766150984962,0.00568,88085.0,88077.0,0.00017024]
[1766150986256,0.0113592,88083.0,88077.0,0.00017024]
[1766150988763,0.0001699,88089.0,88077.0,0.00017024]
[1766150988957,0.0113575,88096.0,88082.0,0.0113592]
[1766150989164,0.02996209,88095.0,88082.0,0.0113592]
[1766150989468,0.00568,88095.0,88082.0,0.0113592]
[1766150989868,0.00568,88095.0,88080.0,0.34060883]
[1766150990169,0.00568,88095.0,88081.0,0.0113593]
[1766150990368,0.0113578,88094.0,88080.0,0.34060883]
[1766150990769,0.0113551,88114.0,88087.0,0.0113586]
[1766150990770,0.00568,88093.0,88087.0,0.0113586]
[1766150991070,0.00428,88093.0,88089.0,0.0113583]
[1766150991570,0.0036,88096.0,88089.0,0.0113583]
[1766150991959,0.0036,88096.0,88083.0,0.011359]
[1766150992160,0.0036,88096.0,88080.0,0.35196823]
[1766150992862,0.0036,88096.0,88080.0,0.34060883]
[1766150993166,0.0113577,88095.0,88080.0,0.34060883]
[1766150993364,0.0036,88096.0,88080.0,0.34060883]
[1766150993761,0.0113583,88090.0,88080.0,0.34060883]
[1766150993961,0.0113583,88090.0,88078.0,0.00568]
[1766150994162,0.0113579,88093.0,88078.0,0.00568]
[1766150995964,0.0113582,88091.0,88078.0,0.00568]
[1766150996374,0.0113582,88091.0,88080.0,0.34060883]
[1766150997571,0.0113584,88089.0,88077.0,0.00017024]
[1766150997772,0.00568,88089.0,88077.0,0.00017024]
[1766150997971,0.00568,88089.0,88079.0,0.34060883]
[1766150998172,0.00568,88090.0,88079.0,0.34060883]
[1766150998369,0.011358,88092.0,88079.0,0.34060883]
[1766150998877,0.02441121,88091.0,88079.0,0.34060883]
[1766150999176,0.011358,88092.0,88079.0,0.34060883]
[1766150999477,0.02441168,88091.0,88079.0,0.34060883]
[1766150999664,0.011358,88092.0,88079.0,0.34060883]
[1766150999867,0.00568,88093.0,88079.0,0.35196843]
[1766151000164,0.02441146,88092.0,88079.0,0.35196843]
[1766151000473,0.011358,88092.0,88080.0,0.34060883]
[1766151000868,0.0113581,88091.0,88080.0,0.34060883]
[1766151001375,0.0113586,88087.0,88080.0,0.34060883]
[1766151001577,0.0113586,88087.0,88077.0,0.00017024]
[1766151001766,0.00568,88093.0,88077.0,0.00017024]
[1766151001967,0.00568,88093.0,88077.0,4e-08]
[1766151001968,0.0113593,88082.0,88077.0,4e-08]
[1766151002678,0.00568,88093.0,88077.0,4e-08]
[1766151002973,0.02441141,88092.0,88077.0,4e-08]
[1766151003172,0.02441141,88091.0,88077.0,4e-08]
[1766151003374,0.02441141,88090.0,88077.0,4e-08]
[1766151003571,0.00568,88093.0,88080.0,0.34060883]
[1766151003771,0.02441122,88092.0,88080.0,0.34060883]
[1766151003972,0.02441122,88091.0,88080.0,0.34060883]
[1766151004173,0.02441122,88090.0,88080.0,0.34060883]
[1766151004367,0.0113583,88089.0,88080.0,0.34060883]
[1766151004675,0.011358,88092.0,88080.0,0.34060883]
[1766151004878,0.02441148,88091.0,88080.0,0.34060883]
[1766151005179,0.02441148,88090.0,88080.0,0.34060883]
[1766151005474,0.011358,88092.0,88080.0,0.34060883]
[1766151005666,0.0113582,88090.0,88080.0,0.34060883]
[1766151006070,0.0113585,88088.0,88080.0,0.34060883]
[1766151006265,0.0113587,88086.0,88077.0,4e-08]
[1766151006762,0.0113591,88084.0,88077.0,4e-08]
[1766151006962,0.0113593,88082.0,88077.0,4e-08]
[1766151007167,0.011359,88085.0,88077.0,4e-08]
[1766151007877,0.00568,88084.0,88077.0,4e-08]
[1766151009685,0.0113588,88086.0,88077.0,4e-08]
[1766151009879,0.0113591,88084.0,88077.0,4e-08]
[1766151010385,0.0170391,88084.0,88077.0,4e-08]
[1766151010877,0.0113591,88084.0,88077.0,4e-08]
[1766151011075,0.0170391,88084.0,88077.0,4e-08]
[1766151013681,0.0113593,88082.0,88077.0,4e-08]
[1766151014282,0.00568,88084.0,88077.0,4e-08]
[1766151014783,0.0113593,88082.0,88077.0,4e-08]
[1766151015184,0.00568,88084.0,88077.0,4e-08]
[1766151017871,0.0113591,88083.0,88077.0,4e-08]
[1766151018066,0.00568,88084.0,88077.0,4e-08]
[1766151018680,0.0001702,88094.0,88077.0,4e-08]
[1766151018978,0.0001702,88094.0,88086.0,0.0113587]
[1766151019185,0.00156,88093.0,88086.0,0.0113587]
[1766151019778,0.00156,88093.0,88083.0,0.0113591]
[1766151020767,0.34060883,88110.0,88083.0,0.0113591]
[1766151020973,0.0612865,88154.0,88106.0,0.68121766]
[1766151021280,0.0113517,88141.0,88124.0,0.0113538]
[1766151021586,0.00072,88140.0,88130.0,0.34060883]
[1766151021781,0.00568,88139.0,88120.0,0.34060883]
[1766151022079,0.00568,88139.0,88126.0,0.00017024]
[1766151022491,0.00568,88139.0,88129.0,0.34060883]
[1766151025982,0.00568,88139.0,88129.0,0.34022338]
[1766151026571,0.00568,88138.0,88129.0,0.34022338]
[1766151029685,0.00568,88137.0,88129.0,0.34022338]
[1766151030278,0.00568,88137.0,88127.0,0.34022338]
[1766151031095,0.0113517,88141.0,88126.0,0.00017024]
[1766151031387,0.00568,88136.0,88130.0,0.34022338]
[1766151031593,0.0113517,88141.0,88126.0,0.34039362]
[1766151031801,0.34022338,88150.0,88126.0,0.00017024]
[1766151031802,0.00568,88135.0,88126.0,0.00017024]
[1766151031981,0.0170324,88135.0,88126.0,0.00017024]
[1766151032688,0.0170324,88135.0,88120.0,0.34022338]
[1766151033192,0.0113529,88132.0,88120.0,0.34022338]
[1766151033495,0.0113529,88132.0,88117.0,0.06307739]
[1766151033683,0.0113529,88132.0,88116.0,0.00017024]
[1766151035990,0.0113529,88132.0,88117.0,0.0113547]
[1766151036795,0.00568,88131.0,88117.0,0.0113547]
[1766151037383,0.00568,88131.0,88116.0,0.01152494]
[1766151038184,0.017033,88131.0,88116.0,0.01152494]
[1766151038392,0.00568,88131.0,88116.0,0.00017024]
[1766151039193,0.0113532,88129.0,88116.0,0.00017024]
[1766151040495,0.00568,88131.0,88116.0,0.00017024]
[1766151040891,0.0113533,88129.0,88116.0,0.00017024]
[1766151041091,0.00568,88131.0,88116.0,0.01152504]
[1766151041289,0.00568,88131.0,88116.0,0.00017024]
[1766151041596,0.0113535,88127.0,88116.0,0.00017024]
[1766151041988,0.0113531,88130.0,88116.0,0.00017024]
[1766151043097,0.3402918,88130.0,88116.0,0.00017024]
[1766151043400,0.0113548,88117.0,88098.0,0.00227021]
[1766151043587,0.3402918,88126.0,88098.0,0.00227021]
[1766151043588,0.00568,88116.0,88098.0,0.00227021]
[1766151043783,0.011356,88108.0,88098.0,0.00227021]
[1766151043989,0.00568,88107.0,88098.0,0.00227021]
[1766151046798,0.00568,88107.0,88082.0,0.0170392]
[1766151047002,0.00568,88107.0,88084.0,0.011359]
[1766151047594,0.00568,88107.0,88081.0,0.0113594]
[1766151047799,0.00568,88107.0,88087.0,0.00017024]
[1766151048003,0.0113567,88102.0,88087.0,0.00017024]
[1766151049297,0.0113563,88105.0,88087.0,0.00017024]
[1766151050397,0.00568,88107.0,88087.0,2.4e-07]
[1766151050595,0.0113574,88097.0,88087.0,2.4e-07]
[1766151050798,0.00568,88096.0,88087.0,2.4e-07]
[1766151050991,0.0170375,88096.0,88087.0,2.4e-07]
[1766151051192,0.00568,88096.0,88087.0,2.4e-07]
[1766151051796,0.0113576,88095.0,88087.0,2.4e-07]
[1766151052001,0.00568,88096.0,88087.0,2.4e-07]
[1766151052492,0.0170375,88096.0,88087.0,2.4e-07]
[1766151053091,0.0113578,88094.0,88087.0,2.4e-07]
[1766151053892,0.0113581,88092.0,88087.0,2.4e-07]
[1766151054091,0.0113576,88095.0,88087.0,2.4e-07]
[1766151054604,0.00568,88096.0,88087.0,2.4e-07]
[1766151055507,0.011358,88093.0,88087.0,2.4e-07]
[1766151057606,0.0113582,88091.0,88087.0,2.4e-07]
[1766151057804,0.00568,88090.0,88087.0,2.4e-07]
[1766151058000,0.0113583,88089.0,88087.0,2.4e-07]
[1766151060202,2.38568,88101.0,88087.0,2.4e-07]
[1766151060405,0.00568,88100.0,88092.0,0.0113579]
[1766151060609,0.00568,88099.0,88092.0,0.0113579]
[1766151060807,0.00568,88098.0,88092.0,0.0113579]
[1766151061205,0.00568,88097.0,88094.0,0.0113577]
[1766151061401,0.0113557,88110.0,88087.0,2.4e-07]
[1766151061598,2.38572,88112.0,88091.0,0.011358]
[1766151061599,0.0113562,88106.0,88091.0,0.011358]
[1766151061806,0.0113562,88106.0,88090.0,0.0113581]
[1766151062224,0.0113562,88106.0,88087.0,2.4e-07]
[1766151062225,0.0113562,88106.0,88092.0,0.0113579]
[1766151062604,0.00568,88109.0,88089.0,0.0113583]
[1766151062803,0.0113561,88107.0,88090.0,0.0113582]
[1766151063014,0.0113561,88107.0,88092.0,0.0113579]
[1766151063815,0.00568,88106.0,88092.0,0.0113579]
[1766151064201,0.0113563,88105.0,88089.0,0.0113583]
[1766151064605,0.0113567,88102.0,88087.0,2.4e-07]
[1766151064805,0.0113567,88102.0,88088.0,0.0113584]
[1766151065096,0.0113564,88105.0,88088.0,0.0113584]
[1766151065302,0.0113566,88103.0,88088.0,0.0113584]
[1766151068514,0.00568,88106.0,88087.0,2.4e-07]
[1766151068811,0.0113576,88095.0,88087.0,2.4e-07]
[1766151069012,0.3402918,88110.0,88087.0,2.4e-07]
[1766151069205,0.0113563,88105.0,88089.0,0.0113583]
[1766151070111,0.0113566,88103.0,88089.0,0.0113583]
[1766151070309,0.00568,88102.0,88089.0,0.0113583]
[1766151070518,0.0113568,88101.0,88087.0,2.4e-07]
[1766151070812,0.0113577,88094.0,88087.0,2.4e-07]
[1766151071016,0.00568,88093.0,88087.0,2.4e-07]
[1766151072213,0.01145998,88092.0,88073.0,0.03049681]
[1766151072407,0.01145998,88092.0,88074.0,0.0113602]
[1766151072915,0.00010198,88092.0,88072.0,0.03049681]
[1766151073117,0.0113585,88088.0,88073.0,0.00017024]
[1766151073914,0.3402918,88090.0,88073.0,0.00017024]
[1766151074118,0.011359,88085.0,88073.0,0.00017024]
[1766151074418,0.00568,88084.0,88073.0,0.00017024]
[1766151076309,0.0113594,88081.0,88073.0,0.00017024]
[1766151076517,0.3402918,88083.0,88053.0,0.011363]
[1766151076717,0.0113611,88068.0,88050.0,0.0113633]
[1766151076910,0.00576525,88067.0,88050.0,0.0113633]
[1766151077311,0.00576525,88067.0,88052.0,0.0113631]
[1766151077525,0.00576525,88067.0,88054.0,0.0113628]
[1766151077821,0.00576525,88067.0,88056.0,0.0113625]
[1766151080112,0.00444,88066.0,88056.0,0.0113625]
[1766151080314,0.00444,88066.0,88053.0,0.0113629]
[1766151080511,0.00444,88066.0,88051.0,0.00838024]
[1766151080825,0.00444,88066.0,88059.0,0.0113622]
[1766151081221,0.00444,88066.0,88056.0,0.0113625]
[1766151082522,0.00444,88066.0,88052.0,0.011363]
[1766151084119,0.00444,88066.0,88054.0,0.0113628]
[1766151086332,0.00444,88066.0,88051.0,0.00838024]
[1766151086720,0.00444,88066.0,88052.0,0.0113631]
[1766151088129,0.00444,88066.0,88054.0,0.0113628]
[1766151088324,0.00568,88065.0,88054.0,0.0113628]
[1766151088627,0.00568,88065.0,88051.0,0.00838024]
[1766151088628,0.00568,88065.0,88051.0,0.01974344]
[1766151091439,0.00568,88065.0,88053.0,0.011363]
[1766151092737,0.0170415,88065.0,88051.0,0.00838024]
[1766151093138,0.0113618,88063.0,88051.0,0.00838024]
[1766151093434,0.0113625,88058.0,88051.0,0.00838024]
[1766151093633,0.0113628,88055.0,88051.0,2.4e-07]
[1766151093840,0.011363,88053.0,88041.0,0.00012909]
[1766151094043,0.0113633,88051.0,88041.0,0.00012909]
[1766151095541,0.0113638,88047.0,88037.0,0.00011385]
[1766151095936,0.34093872,88051.0,88037.0,0.00011385]
[1766151096130,0.0113642,88044.0,88037.0,0.00011385]
[1766151096337,0.0113644,88042.0,88037.0,0.00011385]
[1766151096542,0.00578201,88041.0,88037.0,0.00011385]
[1766151098140,0.00568,88040.0,88037.0,0.00011385]
[1766151098336,0.00568,88039.0,88037.0,0.00011385]
[1766151099046,6e-08,88038.0,88037.0,0.00011385]
[1766151099245,0.00452,88038.0,88037.0,0.00011385]
[1766151099636,2.38676,88064.0,88046.0,0.0113639]
[1766151099836,2.38676,88064.0,88039.0,0.34100916]
[1766151099837,0.0113615,88065.0,88048.0,0.0113635]
[1766151100034,0.00568,88064.0,88048.0,0.0113635]
[1766151100237,0.00568,88064.0,88050.0,0.34100916]
[1766151101041,0.00568,88063.0,88050.0,0.34100916]
[1766151101237,0.00568,88063.0,88048.0,0.0113635]
[1766151101836,0.011362,88061.0,88044.0,0.0113641]
[1766151102038,0.0113623,88059.0,88041.0,0.0113645]
[1766151102239,0.34100916,88060.0,88037.0,0.00011385]
[1766151102440,0.34100916,88051.0,88037.0,0.01147885]
[1766151102639,0.00568,88050.0,88037.0,0.00011385]
[1766151103139,0.0113635,88049.0,88037.0,0.00011385]
[1766151103448,0.0113639,88047.0,88037.0,0.00011385]
[1766151103633,0.00568,88050.0,88031.0,0.0113658]
[1766151103838,0.34668916,88050.0,88033.0,0.0113655]
[1766151104438,0.0113636,88049.0,88033.0,0.0113655]
[1766151106541,0.0113636,88049.0,88032.0,0.00017034]
[1766151106745,0.3468595,88050.0,88032.0,3.4e-07]
[1766151106746,0.0113641,88045.0,88032.0,3.4e-07]
[1766151106937,0.3468595,88050.0,88008.0,0.06120953]
[1766151106938,0.34100916,88042.0,88008.0,0.06120953]
[1766151107133,0.34100916,88019.0,87996.0,0.0113704]
[1766151107341,0.34100916,88010.0,87992.0,0.0113708]
[1766151107541,0.34100916,88010.0,87990.0,0.34100916]
[1766151107542,0.00568,88009.0,87991.0,0.011371]
[1766151107754,0.00396,88008.0,87989.0,0.11358408]
[1766151107938,0.00396,88007.0,87989.0,0.0113711]
[1766151108138,0.00396,88007.0,87985.0,0.0113717]
[1766151108139,9.744e-05,88006.0,87985.0,0.0113717]
[1766151108944,0.34100916,88000.0,87980.0,0.34100916]
[1766151109137,0.01629,87999.0,87978.0,0.00227331]
[1766151109337,0.0113705,87995.0,87978.0,0.00227331]
[1766151109844,0.00492,87999.0,87978.0,0.00227331]
[1766151110044,0.0016,87998.0,87978.0,0.00227331]
[1766151111150,0.0113702,87997.0,87978.0,0.00227331]
[1766151111640,0.0016,87998.0,87978.0,0.00227331]
[1766151112345,9.744e-05,88006.0,87980.0,0.3414153]
[1766151112943,9.744e-05,88006.0,87988.0,0.0113713]
[1766151113146,0.0113649,88038.0,87990.0,0.3414153]
[1766151113455,0.00572,88024.0,88005.0,0.0113691]
[1766151113644,0.00572,88023.0,88005.0,0.0113691]
[1766151113843,0.00572,88023.0,87986.0,0.00572]
[1766151113844,0.0113672,88021.0,87986.0,0.00572]
[1766151114041,0.0113687,88009.0,87987.0,0.0113715]
[1766151114249,0.00017044,88007.0,87992.0,0.0113708]
[1766151114447,0.00017044,88007.0,87989.0,0.00017044]
[1766151114448,0.0036,88006.0,87989.0,0.00017044]
[1766151114764,0.0113695,88003.0,87989.0,0.00017044]
[1766151115141,0.0113699,88000.0,87977.0,0.0113727]
[1766151115341,0.00472,87999.0,87979.0,0.0113725]
[1766151115944,0.00472,87999.0,87982.0,0.0113721]
[1766151116144,0.00392,87998.0,87969.0,0.0113738]
[1766151116342,0.00392,87998.0,87980.0,0.00017032]
[1766151116655,0.0152902,87998.0,87980.0,0.00017032]
[1766151116840,0.00392,87998.0,87981.0,0.0113723]
[1766151117446,0.00392,87998.0,87980.0,0.00017032]
[1766151117658,0.0152901,87998.0,87980.0,0.00017032]
[1766151118153,0.0152901,87998.0,87963.0,0.00572]
[1766151118154,0.00392,87998.0,87963.0,0.00572]
[1766151118454,0.3414153,87990.0,87962.0,0.0113746]
[1766151118646,0.0113726,87979.0,87960.0,9.205e-05]
[1766151118842,0.00572,87978.0,87960.0,9.205e-05]
[1766151119048,0.00572,87978.0,87961.0,0.0113748]
[1766151119256,0.00589044,87978.0,87963.0,0.0113745]
[1766151120256,0.00589044,87978.0,87960.0,0.01146705]
[1766151120452,0.00589044,87978.0,87960.0,9.205e-05]
[1766151120658,0.0113731,87976.0,87941.0,2.38796]
[1766151121053,0.0113731,87976.0,87952.0,0.011376]
[1766151121247,0.0113738,87969.0,87948.0,0.0113765]
[1766151121455,0.00548,87968.0,87941.0,2.38796]
[1766151121644,0.00012237,87967.0,87941.0,2.38796]
[1766151121844,0.00012237,87967.0,87942.0,0.1136764]
[1766151122043,0.00012237,87967.0,87954.0,0.0113757]
[1766151123057,0.00436,87966.0,87954.0,0.0113757]
[1766151123259,0.00436,87966.0,87939.0,0.00572]
[1766151123454,0.00012237,87967.0,87940.0,0.3414153]
[1766151123656,0.00012237,87967.0,87958.0,0.0113753]
[1766151123851,0.00572,87966.0,87958.0,0.0113753]
[1766151124350,0.00012237,87967.0,87958.0,0.0113753]
[1766151124550,0.00572,87966.0,87958.0,0.0113753]
[1766151124952,0.00572,87965.0,87961.0,0.0113749]
[1766151125149,0.00572,87965.0,87953.0,0.0113758]
[1766151125555,0.00572,87965.0,87938.0,0.00227434]
[1766151125749,0.01154554,87960.0,87940.0,0.0113776]
[1766151125953,0.01154554,87960.0,87938.0,0.00227434]
[1766151125954,0.3414153,87950.0,87938.0,0.00227434]
[1766151126159,0.0113772,87944.0,87925.0,0.0113795]
[1766151126461,0.00010445,87943.0,87919.0,0.0113802]
[1766151126662,0.0113783,87935.0,87918.0,0.00013485]
[1766151126869,0.34158584,87940.0,87918.0,0.00013485]
[1766151126870,0.011379,87930.0,87918.0,0.00013485]
[1766151127162,0.00104,87934.0,87918.0,0.00013485]
[1766151127769,0.00104,87934.0,87919.0,0.0113803]
[1766151128067,0.00104,87934.0,87918.0,0.00013485]
[1766151128269,0.3414153,87930.0,87918.0,4.85e-06]
[1766151129472,0.011379,87929.0,87918.0,4.85e-06]
[1766151129669,0.0113795,87926.0,87918.0,4.85e-06]
[1766151129882,0.0113797,87924.0,87918.0,4.85e-06]
[1766151130085,0.0113797,87924.0,87866.0,0.056936]
[1766151130086,0.00572,87925.0,87867.0,2.38916]
[1766151130383,6.5e-07,87905.0,87898.0,0.0113829]
[1766151130578,0.0113787,87932.0,87890.0,0.3470553]
[1766151130784,0.06094407,87947.0,87890.0,0.3470553]
[1766151130785,0.02645455,87931.0,87907.0,0.0113818]
[1766151130969,0.011379,87929.0,87902.0,0.0113824]
[1766151131167,0.0113793,87927.0,87890.0,0.00564]
[1766151131373,0.00017065,87917.0,87900.0,0.00017065]
[1766151131776,0.00572,87916.0,87905.0,0.0113821]
[1766151132086,0.00572,87916.0,87900.0,0.00017065]
[1766151132484,0.00017065,87917.0,87900.0,0.00017065]
[1766151133286,0.00017065,87917.0,87905.0,0.0113821]
[1766151133481,9.279e-05,87930.0,87900.0,0.34158595]
[1766151133882,9.279e-05,87930.0,87900.0,0.00017065]
[1766151134085,0.34150809,87930.0,87900.0,0.00017065]
[1766151134384,0.0113795,87926.0,87900.0,0.00017065]
[1766151134585,0.0113795,87926.0,87905.0,0.011382]
[1766151134779,0.00017065,87922.0,87905.0,0.011382]
[1766151134982,0.00017065,87922.0,87911.0,0.0113813]
[1766151135180,0.00168,87921.0,87916.0,0.0113806]
[1766151135385,0.00572,87920.0,87916.0,0.0113806]
[1766151136290,2.3898,87943.0,87927.0,0.0113793]
[1766151136589,0.0113763,87951.0,87929.0,0.0113789]
[1766151136590,0.00572,87942.0,87929.0,0.0113789]
[1766151136787,0.00572,87941.0,87929.0,0.0113789]
[1766151137185,0.00572,87941.0,87932.0,0.0113786]
[1766151137386,0.00572,87940.0,87932.0,0.0113786]
[1766151138088,0.00572,87940.0,87924.0,0.0113797]
[1766151138487,7.445e-05,87939.0,87924.0,0.0113797]
[1766151138676,7.445e-05,87939.0,87920.0,0.0113801]
[1766151139077,7.445e-05,87939.0,87921.0,0.00017065]
[1766151140492,7.445e-05,87939.0,87924.0,0.0113795]
[1766151140693,7.445e-05,87939.0,87926.0,0.0113793]
[1766151141085,7.445e-05,87939.0,87921.0,0.00017065]
[1766151141086,0.00572,87938.0,87921.0,0.00017065]
[1766151141293,4.45e-06,87939.0,87921.0,0.00017065]
[1766151141693,4.45e-06,87939.0,87932.0,0.0113785]
[1766151141893,0.00164,87938.0,87932.0,0.0113785]
[1766151142085,4.45e-06,87939.0,87932.0,0.0113785]
[1766151142291,0.00244,87937.0,87929.0,0.011379]
[1766151142892,0.00244,87937.0,87921.0,0.00017065]
[1766151142893,0.00244,87937.0,87931.0,0.0113787]
[1766151143197,4.45e-06,87939.0,87934.0,0.0113783]
[1766151143392,0.00168,87938.0,87934.0,0.0113783]
[1766151143587,0.00168,87938.0,87931.0,0.0113787]
[1766151144389,0.00168,87938.0,87923.0,0.0113798]
[1766151144693,0.00168,87938.0,87926.0,0.0113793]
[1766151145200,0.00168,87938.0,87923.0,0.0113798]
[1766151145393,0.00168,87938.0,87921.0,0.00017065]
[1766151145597,0.00168,87938.0,87888.0,0.0113842]
[1766151145802,0.0113792,87928.0,87908.0,0.0113817]
[1766151146096,2.39176,87938.0,87889.0,0.00196]
[1766151146097,0.3414153,87920.0,87902.0,0.0113825]
[1766151146290,0.00572,87919.0,87899.0,0.0113829]
[1766151146697,0.00017065,87918.0,87900.0,0.00017065]
[1766151147201,0.0113809,87915.0,87900.0,0.00017065]
[1766151147392,0.00017065,87918.0,87901.0,0.0113826]
[1766151147588,0.0266718,87917.0,87900.0,0.00017065]
[1766151147796,0.00017065,87918.0,87900.0,0.00017065]
[1766151147996,6.5e-07,87918.0,87900.0,0.00017065]
[1766151148198,6.5e-07,87918.0,87906.0,0.0113819]
[1766151148511,0.00572,87917.0,87906.0,0.0113819]
[1766151149499,0.00572,87917.0,87900.0,0.00017065]
[1766151150003,0.00572,87917.0,87908.0,0.0113816]
[1766151150304,0.00572,87917.0,87905.0,0.0113821]
[1766151150504,0.00572,87917.0,87907.0,0.0113818]
[1766151150690,0.00444065,87918.0,87910.0,0.0113814]
[1766151150891,0.00444065,87918.0,87906.0,0.011382]
[1766151151090,0.00444065,87918.0,87903.0,0.0113823]
[1766151151801,0.00444065,87918.0,87900.0,0.01155335]
[1766151152193,0.00444065,87918.0,87900.0,0.00017065]
[1766151152595,0.011381,87914.0,87900.0,0.00017065]
[1766151152904,0.0113806,87917.0,87900.0,0.00017065]
[1766151153303,0.0113806,87917.0,87900.0,0.01155335]
[1766151153597,0.0113806,87917.0,87900.0,0.00017065]
[1766151153994,0.0113809,87915.0,87900.0,0.00017065]
[1766151154200,0.0113812,87913.0,87900.0,0.00017065]
[1766151154393,0.0113817,87909.0,87900.0,6.5e-07]
[1766151154603,0.00572,87908.0,87900.0,6.5e-07]
[1766151155099,0.00572,87908.0,87889.0,0.0133441]
[1766151155100,0.0113819,87907.0,87889.0,0.0133441]
[1766151155307,0.3414153,87900.0,87870.0,0.0113866]
[1766151155599,0.00572,87899.0,87870.0,0.0113866]
[1766151155797,0.00572,87898.0,87882.0,0.011385]
[1766151156000,0.06094407,87918.0,87875.0,0.011386]
[1766151156199,5e-08,87905.0,87889.0,0.0113842]
[1766151156498,5e-08,87905.0,87903.0,0.0113823]
[1766151156900,5e-08,87905.0,87890.0,0.00572]
[1766151157197,5e-08,87905.0,87892.0,0.0113837]
[1766151157403,5e-08,87905.0,87888.0,0.00017065]
[1766151158394,5e-08,87905.0,87893.0,0.0113836]
[1766151159491,5e-08,87905.0,87888.0,0.00017065]
[1766151159693,0.0008,87904.0,87893.0,0.0113836]
[1766151159899,0.0008,87904.0,87888.0,0.00017065]
[1766151159900,0.03757246,87903.0,87888.0,0.00017065]
[1766151160200,5e-08,87905.0,87888.0,0.00017065]
[1766151160201,6e-08,87902.0,87888.0,0.00017065]
[1766151160405,0.0113793,87927.0,87908.0,0.0113816]
[1766151160604,0.00572,87926.0,87910.0,0.0113814]
[1766151161109,0.0113796,87925.0,87907.0,0.0113818]
[1766151161309,0.00017065,87925.0,87907.0,0.00017065]
[1766151161506,0.00572,87924.0,87907.0,0.00017065]
[1766151161709,0.0113804,87919.0,87907.0,0.00017065]
[1766151162299,0.0113812,87913.0,87895.0,0.0113834]
[1766151162499,0.00572,87912.0,87895.0,0.0113834]
[1766151162700,0.0113814,87911.0,87895.0,0.0113834]
[1766151163104,0.0113814,87911.0,87892.0,0.0113838]
[1766151163306,0.0113814,87911.0,87860.0,0.0009999]
[1766151163307,0.00017065,87910.0,87893.0,0.00017065]
[1766151163517,0.0113821,87906.0,87893.0,0.00017065]
[1766151163713,0.01155215,87910.0,87893.0,0.00017065]
[1766151163902,0.00017065,87910.0,87893.0,0.00017065]
[1766151164109,0.00017065,87910.0,87899.0,0.0113828]
[1766151164406,6.5e-07,87911.0,87893.0,0.00017065]
[1766151164601,6.5e-07,87911.0,87897.0,0.0113831]
[1766151164805,6.5e-07,87911.0,87893.0,0.01155415]
[1766151165305,0.0113815,87910.0,87893.0,0.00017065]
[1766151165507,0.01155215,87910.0,87893.0,0.00017065]
[1766151165813,0.0113819,87908.0,87893.0,0.00017065]
[1766151166211,0.0113821,87906.0,87893.0,0.00017065]
[1766151166410,0.0113827,87901.0,87881.0,0.0113852]
[1766151166714,0.00364,87900.0,87871.0,0.00172]
[1766151166910,0.00364,87900.0,87888.0,0.0113842]
[1766151167409,0.00364,87900.0,87885.0,0.00017065]
[1766151168317,0.0150229,87900.0,87885.0,0.00017065]
[1766151168813,0.0113833,87896.0,87885.0,0.00017065]
[1766151169121,0.50184148,87900.0,87870.0,0.0113865]
[1766151169415,0.0113835,87895.0,87874.0,0.0113861]
[1766151169910,0.00017065,87893.0,87876.0,0.00017004]
[1766151170214,8.996e-05,87892.0,87883.0,0.0113849]
[1766151170513,0.00176,87892.0,87880.0,0.0113853]
[1766151170703,0.00256,87892.0,87876.0,0.00017004]
[1766151170900,6.5e-07,87893.0,87887.0,0.0113843]
[1766151171716,6.5e-07,87893.0,87884.0,0.0113848]
[1766151171914,6.5e-07,87893.0,87880.0,0.0113853]
[1766151172115,6.5e-07,87893.0,87877.0,0.0113857]
[1766151172311,6.5e-07,87893.0,87876.0,0.00017004]
[1766151173213,0.0113847,87886.0,87876.0,4e-08]
[1766151173414,0.00572,87885.0,87876.0,4e-08]
[1766151173719,0.00572,87886.0,87876.0,4e-08]
[1766151174310,6.5e-07,87893.0,87880.0,0.0113853]
[1766151174511,0.02826947,87892.0,87876.0,4e-08]
[1766151174707,0.00284,87892.0,87885.0,0.0113847]
[1766151174907,1e-07,87892.0,87876.0,4e-08]
[1766151175313,1e-07,87892.0,87885.0,0.0113846]
[1766151175505,6.5e-07,87893.0,87876.0,4e-08]
[1766151175711,6.5e-07,87893.0,87890.0,0.0113839]
[1766151175906,2.40254,87922.0,87904.0,0.0113821]
[1766151176120,0.0311659,87921.0,87904.0,0.0113821]
[1766151176317,0.0311659,87920.0,87904.0,0.0113821]
[1766151176617,0.0254459,87919.0,87904.0,0.0113821]
[1766151177023,0.00572,87918.0,87904.0,0.0113821]
[1766151177221,0.0254459,87917.0,87903.0,0.00017065]
[1766151177418,0.0254459,87917.0,87903.0,0.01155295]
[1766151177726,0.0113775,87941.0,87920.0,0.0113801]
[1766151177927,0.00572,87940.0,87920.0,0.0113801]
[1766151178226,0.00572,87940.0,87926.0,0.0113793]
[1766151178822,0.00017065,87942.0,87932.0,0.0113785]
[1766151179021,0.00172,87941.0,87932.0,0.0113785]
[1766151179616,5e-08,87942.0,87935.0,0.0113781]